fUST/lending_fUST_20250707
["ID","MTS","AMOUNT","RATE_DAILY","PERIOD"]
[370114375,1751890249950,-216.53714914,0.00022799,2]
[370114376,1751890249959,-151.0,0.00022799,2]
[370114377,1751890249968,-151.0,0.00022799,2]
[370114378,1751890249978,-151.0,0.00022799,2]
[370114379,1751890249988,-151.0,0.00022799,2]
[370114380,1751890249997,-434.82246799,0.00022802,2]
[370114381,1751890250007,-179.511555,0.00022804,2]
[370114382,1751890250017,-283.0,0.00022807,2]
[370114383,1751890250026,-151.0,0.00022821,7]
[370114384,1751890250036,-151.0,0.00022821,7]
[370114385,1751890250046,-151.0,0.00022821,7]
[370114386,1751890250055,-151.0,0.00022821,7]
[370114387,1751890250066,-460.0,0.00022821,2]
[370114388,1751890250078,-460.0,0.00022821,2]
[370114389,1751890250088,-460.0,0.00022821,2]
[370114390,1751890250097,-716.195754,0.00022854,2]
[370114391,1751890250106,-616.85560647,0.00022909,2]
[370114392,1751890250117,-730.13,0.00022999,2]
[370114393,1751890250127,-330.67695274,0.00023,2]
[370114394,1751890250136,-160.0,0.00023,2]
[370114395,1751890250146,-208.42127566,0.00023003,8]
[370114396,1751890250155,-1166.62,0.00023013,2]
[370114397,1751890250165,-435.46905817,0.00023013,2]
[370114398,1751890250175,-460.0,0.00023013,2]
[370114399,1751890250184,-460.0,0.00023013,2]
[370114400,1751890250193,-1134.74,0.00023013,2]
[370114401,1751890250203,-170.0,0.00023014,7]
[370114402,1751890250212,-150.0,0.00023073,2]
[370114403,1751890250222,-460.0,0.00023095,2]
[370114404,1751890250234,-460.0,0.00023095,2]
[370114405,1751890250245,-460.0,0.00023095,2]
[370114406,1751890250256,-730.13,0.00023099,2]
[370114407,1751890250266,-730.13,0.00023099,2]
[370114408,1751890250276,-730.13,0.00023099,2]
[370114409,1751890250286,-730.13,0.00023099,2]
[370114410,1751890250296,-730.13,0.00023099,2]
[370114411,1751890250305,-730.28231036,0.00023099,2]
[370114412,1751890250315,-160.0,0.000231,3]
[370114413,1751890250326,-160.0,0.000231,3]
[370114414,1751890250468,-160.0,0.000231,3]
[370114415,1751890250479,-160.0,0.000231,3]
[370114416,1751890250488,-40158.12,0.000231,7]
[370114417,1751890250498,-89715.89,0.000231,2]
[370114418,1751890250508,-160.0,0.000231,3]
[370114419,1751890250517,-249.854843,0.000231,7]
[370114420,1751890250526,-837.79946008,0.000231,3]
[370114421,1751890250536,-151.0,0.000231,7]
[370114422,1751890250546,-151.0,0.000231,7]
[370114423,1751890250555,-151.0,0.000231,7]
[370114424,1751890250564,-230.48668418,0.000231,3]
[370114425,1751890250573,-151.0,0.000231,7]
[370114426,1751890250583,-151.0,0.000231,7]
[370114427,1751890250592,-151.0,0.000231,7]
[370114428,1751890250601,-151.0,0.000231,7]
[370114429,1751890250610,-12584.46609586,0.000231,3]
[370114430,1751890250619,-151.0,0.000231,7]
[370114431,1751890250628,-151.0,0.000231,7]
[370114432,1751890250637,-151.0,0.000231,7]
[370114433,1751890250647,-151.0,0.000231,7]
[370114434,1751890250655,-160.0,0.000231,3]
[370114435,1751890250665,-151.0,0.000231,7]
[370114436,1751890250675,-215.21338352,0.000231,3]
[370114437,1751890250684,-151.0,0.000231,7]
[370114438,1751890250693,-180.002054,0.000231,7]
[370114439,1751890250702,-189.263538,0.000231,7]
[370114440,1751890250712,-189.263538,0.000231,7]
[370114441,1751890250722,-151.0,0.000231,7]
[370114442,1751890250731,-151.0,0.000231,7]
[370114443,1751890250741,-160.0,0.000231,3]
[370114444,1751890250750,-160.0,0.000231,7]
[370114445,1751890250760,-160.0,0.000231,3]
[370114446,1751890250770,-214.06929976,0.000231,3]
[370114447,1751890250779,-214.06929976,0.000231,7]
[370114448,1751890250788,-848.27993403,0.000231,3]
[370114449,1751890250797,-848.27993403,0.000231,7]
[370114450,1751890250807,-151.0,0.000231,7]
[370114451,1751890250816,-151.0,0.000232,7]
[370114452,1751890250825,-151.0,0.000232,7]
[370114453,1751890250835,-2060.95,0.000232,7]
[370114454,1751890250849,-151.0,0.000232,7]
[370114455,1751890250858,-156.477652,0.000232,7]
[370114456,1751890250868,-151.0,0.000232,7]
[370114457,1751890250877,-151.0,0.000232,7]
[370114458,1751890250887,-189.263538,0.000232,7]
[370114459,1751890250896,-189.263538,0.000232,7]
[370114460,1751890250906,-208.42127566,0.0002321,8]
[370114461,1751890250915,-691.0,0.00023214,2]
[370114462,1751890250925,-366.6942869,0.00023233,2]
[370114463,1751890250934,-366.6942869,0.00023233,2]
[370114464,1751890250945,-366.6942869,0.00023233,2]
[370114465,1751890250954,-366.6942869,0.00023233,2]
[370114466,1751890250964,-366.6942869,0.00023233,2]
[370114467,1751890250973,-366.6942869,0.00023233,2]
[370114468,1751890250983,-366.6942869,0.00023233,2]
[370114469,1751890250992,-366.6942869,0.00023233,2]
[370114470,1751890251001,-366.6942869,0.00023233,2]
[370114471,1751890251011,-366.6942869,0.00023233,2]
[370114472,1751890251021,-366.6942869,0.00023233,2]
[370114473,1751890251030,-366.6942869,0.00023233,2]
[370114474,1751890251039,-208.6923235,0.00023233,2]
[370114475,1751890251049,-691.0,0.0002326,2]
[370114476,1751890251058,-1000.0,0.00023267,2]
[370114477,1751890251070,-500.0,0.00023267,2]
[370114478,1751890251081,-1000.0,0.00023267,2]
[370114479,1751890251091,-1200.0,0.00023267,2]
[370114480,1751890251102,-334.476543,0.00023267,2]
[370114481,1751890251112,-1000.0,0.00023267,2]
[370114482,1751890251122,-883.50705906,0.00023267,2]
[370114483,1751890251131,-222.04728116,0.00023267,2]
[370114484,1751890251140,-1000.0,0.00023267,2]
[370114485,1751890251150,-1000.0,0.00023267,2]
[370114486,1751890251159,-1000.0,0.00023267,2]
[370114487,1751890251169,-1081.53029727,0.00023267,2]
[370114488,1751890251179,-1000.0,0.00023267,2]
[370114489,1751890251189,-1000.0,0.00023267,2]
[370114490,1751890251199,-1166.62,0.00023287,2]
[370114491,1751890251208,-320.46375407,0.00023287,2]
[370114492,1751890251218,-460.0,0.00023287,2]
[370114493,1751890251227,-1134.74,0.00023287,2]
[370114494,1751890251237,-283.0,0.00023317,2]
[370114495,1751890251247,-297.57,0.00023369,2]
[370114496,1751890251257,-460.0,0.00023369,2]
[370114497,1751890251266,-460.0,0.00023369,2]
[370114498,1751890251276,-1177.20447147,0.00023379,2]
[370114499,1751890251286,-208.42127566,0.00023417,9]
[370114500,1751890251296,-332.0,0.00023487,2]
[370114501,1751890251306,-1450.07,0.000235,7]
[370114502,1751890251316,-153.0,0.00023507,2]
[370114503,1751890251326,-177.763542,0.00023507,2]
[370114504,1751890251336,-159.4922776,0.00023507,2]
[370114505,1751890251345,-1151.7402556,0.00023507,2]
[370114506,1751890251355,-177.763542,0.00023507,2]
[370114507,1751890251365,-159.4922776,0.00023507,2]
[370114508,1751890251376,-177.0649041,0.00023507,2]
[370114509,1751890251386,-159.4922776,0.00023507,2]
[370114510,1751890251395,-576.0368563,0.00023507,2]
[370114511,1751890251405,-576.0368563,0.00023507,2]
[370114512,1751890251414,-576.0368563,0.00023507,2]
[370114513,1751890251424,-576.0368563,0.00023507,2]
[370114514,1751890251435,-318.9845552,0.00023507,2]
[370114515,1751890251445,-159.4922776,0.00023507,2]
[370114516,1751890251455,-159.4922776,0.00023507,2]
[370114517,1751890251465,-1166.62,0.00023561,2]
[370114518,1751890251475,-460.0,0.00023561,2]
[370114519,1751890251485,-1134.74,0.00023561,2]
[370114520,1751890251495,-151.0,0.00023596,7]
[370114521,1751890251505,-151.0,0.00023596,7]
[370114522,1751890251515,-151.0,0.00023596,7]
[370114523,1751890251524,-151.0,0.00023596,7]
[370114524,1751890251534,-151.0,0.00023596,7]
[370114525,1751890251544,-151.0,0.00023596,7]
[370114526,1751890251554,-300.0,0.00023621,2]
[370114527,1751890251563,-208.42127566,0.00023624,9]
[370114528,1751890251572,-691.0,0.00023629,2]
[370114529,1751890251582,-460.0,0.00023643,2]
[370114530,1751890251591,-460.0,0.00023643,2]
[370114531,1751890251600,-1000.0,0.00023652,5]
[370114532,1751890251610,-151.0,0.00023672,7]
[370114533,1751890251619,-189.682315,0.00023672,7]
[370114534,1751890251629,-189.682315,0.00023672,7]
[370114535,1751890251639,-151.0,0.00023672,7]
[370114536,1751890251648,-1606.14501394,0.00023672,2]
[370114537,1751890252020,-460.0,0.00019178,2]
[370114538,1751890252030,-261.41351,0.00019178,2]
[370114539,1751890252047,-198.58649,0.00019178,2]
[370114540,1751890252057,-453.42351,0.00019178,2]
[370114569,1751890807923,5000.0,0.00016226,2]
[370114601,1751891156143,-448.07258873,0.0001855,2]
[370114602,1751891156164,-198.9357294,0.00018764,2]
[370114603,1751891158865,164.904123,0.00013699,2]
[370114605,1751891196098,-153.32231754,0.00018764,2]
[370114612,1751891316390,2191.1931702,0.00016209,2]
[370114696,1751891432679,-432.64531156,0.00018664,2]
[370114698,1751891432688,-1177.20447148,0.00018764,2]
[370114700,1751891432698,-8189.56935687,0.00018764,2]
[370114702,1751891432711,-6805.4535714,0.00018764,2]
[370114704,1751891432722,-744.58352582,0.00018764,2]
[370114706,1751891432737,-10845.0,0.00018764,2]
[370114709,1751891432757,-605.45,0.00018764,2]
[370114712,1751891432768,-481.84569023,0.00018764,2]
[370114714,1751891432779,-1311.93959777,0.00018764,2]
[370114716,1751891432791,-769.55865236,0.00018764,2]
[370114718,1751891432804,-2159.59038949,0.00018764,2]
[370114720,1751891432816,-757.55200242,0.00018764,2]
[370114813,1751891438850,-8057.31786732,0.00018764,2]
[370114815,1751891438859,-5854.53215062,0.00018837,2]
[370114819,1751891438880,-2130.1,0.00018837,2]
[370114821,1751891438891,-1958.39254114,0.00018837,2]
[370114824,1751891438911,-32754.00589033,0.00018837,2]
[370114826,1751891438920,-500.0,0.00018837,2]
[370114827,1751891438930,-500.0,0.00018837,2]
[370114828,1751891438940,-151.0,0.00018837,2]
[370114829,1751891438949,-151.0,0.00018837,2]
[370114830,1751891438958,-151.53734073,0.00018837,2]
[370114831,1751891438968,-200.31382204,0.00018837,2]
[370114832,1751891438978,-151.0,0.00018837,2]
[370114833,1751891438987,-151.0,0.00018837,2]
[370114834,1751891438996,-151.0,0.00018837,2]
[370114835,1751891439005,-151.0,0.00018837,2]
[370114836,1751891439015,-623.70412346,0.00018837,2]
[370114837,1751891439024,-623.70412346,0.00018837,2]
[370114838,1751891439034,-623.70412346,0.00018837,2]
[370114839,1751891439043,-623.70412346,0.00018837,2]
[370114840,1751891439052,-623.70412346,0.00018837,2]
[370114841,1751891439061,-623.70412346,0.00018837,2]
[370114842,1751891439072,-623.70412346,0.00018837,2]
[370114843,1751891439081,-623.70412346,0.00018837,2]
[370114844,1751891439238,-623.70412346,0.00018837,2]
[370114845,1751891439249,-623.70412346,0.00018837,2]
[370114846,1751891439258,-623.70412346,0.00018837,2]
[370114847,1751891439268,-623.70412346,0.00018837,2]
[370114848,1751891439277,-623.70412346,0.00018837,2]
[370114849,1751891439287,-623.70412346,0.00018837,2]
[370114850,1751891439296,-623.70412346,0.00018837,2]
[370114851,1751891439306,-623.70412346,0.00018837,2]
[370114852,1751891439315,-623.70412346,0.00018837,2]
[370114853,1751891439325,-623.70412346,0.00018837,2]
[370114854,1751891439334,-623.70412346,0.00018837,2]
[370114855,1751891439343,-623.70412346,0.00018837,2]
[370114856,1751891439353,-623.70412346,0.00018837,2]
[370114857,1751891439362,-623.70412346,0.00018837,2]
[370114858,1751891439371,-623.70412346,0.00018837,2]
[370114859,1751891439380,-623.70412346,0.00018837,2]
[370114860,1751891439390,-623.70412346,0.00018837,2]
[370114861,1751891439399,-623.70412346,0.00018837,2]
[370114862,1751891439409,-623.70412346,0.00018837,2]
[370114863,1751891439418,-623.70412346,0.00018837,2]
[370114864,1751891439427,-623.70412346,0.00018837,2]
[370114865,1751891439436,-623.70412346,0.00018837,2]
[370114866,1751891439446,-623.70412346,0.00018837,2]
[370114867,1751891439455,-623.70412346,0.00018837,2]
[370114868,1751891439464,-623.70412346,0.00018837,2]
[370114869,1751891439474,-623.70412346,0.00018837,2]
[370114870,1751891439483,-623.70412346,0.00018837,2]
[370114871,1751891439493,-623.70412346,0.00018837,2]
[370114872,1751891439503,-623.70412346,0.00018837,2]
[370114873,1751891439513,-623.70412346,0.00018837,2]
[370114874,1751891439523,-623.70412346,0.00018837,2]
[370114875,1751891439532,-623.70412346,0.00018837,2]
[370114876,1751891439542,-623.70412346,0.00018837,2]
[370114877,1751891439551,-623.70412346,0.00018837,2]
[370114878,1751891439560,-623.70412346,0.00018837,2]
[370114879,1751891439570,-623.70412346,0.00018837,2]
[370114880,1751891439579,-623.70412346,0.00018837,2]
[370114881,1751891439589,-623.70412346,0.00018837,2]
[370114882,1751891439599,-623.70412346,0.00018837,2]
[370114883,1751891439609,-623.70412346,0.00018837,2]
[370114884,1751891439618,-623.70412346,0.00018837,2]
[370114885,1751891439628,-623.70412346,0.00018837,2]
[370114886,1751891439637,-623.70412346,0.00018837,2]
[370114887,1751891439647,-623.70412346,0.00018837,2]
[370114888,1751891439657,-623.70412346,0.00018837,2]
[370114889,1751891439666,-623.70412346,0.00018837,2]
[370114890,1751891439676,-623.70412346,0.00018837,2]
[370114891,1751891439685,-623.70412346,0.00018837,2]
[370114892,1751891439695,-623.70412346,0.00018837,2]
[370114893,1751891439705,-623.70412346,0.00018837,2]
[370114894,1751891439714,-623.70412346,0.00018837,2]
[370114895,1751891439723,-2682.59762558,0.00018837,2]
[370114896,1751891439733,-2682.59762558,0.00018837,2]
[370114897,1751891439742,-2682.59762558,0.00018837,2]
[370114898,1751891439751,-2682.59762558,0.00018837,2]
[370114899,1751891439760,-2682.59762558,0.00018837,2]
[370114900,1751891439770,-2682.59762558,0.00018837,2]
[370114901,1751891439779,-2682.59762558,0.00018837,2]
[370114902,1751891439788,-2682.59762558,0.00018837,2]
[370114903,1751891439798,-2682.59762558,0.00018837,2]
[370114904,1751891439810,-2682.59762558,0.00018837,2]
[370114905,1751891439820,-2682.59762558,0.00018837,2]
[370114906,1751891439830,-2682.59762558,0.00018837,2]
[370114907,1751891439839,-2682.59762558,0.00018837,2]
[370114908,1751891439850,-2682.59762558,0.00018837,2]
[370114909,1751891439859,-2682.59762558,0.00018837,2]
[370114910,1751891439868,-2682.59762558,0.00018837,2]
[370114911,1751891439879,-2682.59762558,0.00018837,2]
[370114912,1751891439888,-2682.59762558,0.00018837,2]
[370114913,1751891439897,-2682.59762558,0.00018837,2]
[370114914,1751891439906,-2682.59762558,0.00018837,2]
[370114915,1751891439915,-2682.59762558,0.00018837,2]
[370114916,1751891439925,-2682.59762558,0.00018837,2]
[370114917,1751891439934,-2682.59762558,0.00018837,2]
[370114918,1751891439944,-2682.59762558,0.00018837,2]
[370114919,1751891439953,-2682.59762558,0.00018837,2]
[370114920,1751891439962,-2682.59762558,0.00018837,2]
[370114921,1751891439971,-2682.59762558,0.00018837,2]
[370114922,1751891439980,-2682.59762558,0.00018837,2]
[370114923,1751891439989,-2682.59762558,0.00018837,2]
[370114924,1751891439999,-2682.59762558,0.00018837,2]
[370114925,1751891440008,-2682.59762558,0.00018837,2]
[370114926,1751891440017,-2682.59762568,0.00018837,2]
[370114927,1751891440026,-500.0,0.00018839,2]
[370114928,1751891440036,-172778.13539719,0.0001884,2]
[370114929,1751891440045,-500.0,0.00018864,2]
[370114930,1751891440054,-500.0,0.00018864,2]
[370114931,1751891440063,-186.53348416,0.00018864,2]
[370114932,1751891440073,-151.0,0.00018864,2]
[370114933,1751891440082,-500.0,0.00018873,2]
[370114935,1751891440091,-500.0,0.00018873,2]
[370114936,1751891440100,-500.0,0.00018873,2]
[370114937,1751891440109,-500.0,0.00018892,2]
[370114938,1751891440119,-500.0,0.00018892,2]
[370114939,1751891440128,-151.0,0.00018892,2]
[370114940,1751891440137,-1021.13380299,0.000189,2]
[370114941,1751891440146,-500.0,0.00018919,2]
[370114942,1751891440156,-500.0,0.00018919,2]
[370114943,1751891440165,-151.0,0.00018919,2]
[370114944,1751891440174,-500.0,0.00018947,2]
[370114945,1751891440183,-500.0,0.00018947,2]
[370114946,1751891440192,-500.0,0.00018974,2]
[370114948,1751891440202,-500.0,0.00018974,2]
[370114949,1751891440211,-500.0,0.00019001,2]
[370114950,1751891440220,-500.0,0.00019001,2]
[370114951,1751891440229,-256.73739429,0.00019029,2]
[370114952,1751891440239,-500.0,0.00019029,2]
[370114953,1751891440248,-500.0,0.00019056,2]
[370114954,1751891440258,-500.0,0.00019084,2]
[370114956,1751891440267,-637.17210654,0.00019111,2]
[370114957,1751891440277,-500.0,0.00019113,2]
[370114958,1751891440286,-500.0,0.00019173,2]
[370114959,1751891440295,-500.0,0.00019173,2]
[370114960,1751891440305,-501.8141145,0.00019173,2]
[370114961,1751891440314,-508.31206158,0.00019173,2]
[370114962,1751891440325,-500.0,0.00019173,2]
[370114963,1751891440334,-500.0,0.00019173,2]
[370114964,1751891440343,-500.0,0.00019173,2]
[370114965,1751891440353,-600.0,0.00019173,2]
[370114966,1751891440362,-500.0,0.00019173,2]
[370114967,1751891440371,-500.0,0.00019173,2]
[370114970,1751891440380,-500.0,0.00019173,2]
[370114971,1751891440389,-500.0,0.00019173,2]
[370114973,1751891440399,-500.0,0.00019173,2]
[370114975,1751891440409,-500.0,0.00019173,2]
[370114976,1751891440418,-501.01682281,0.00019173,2]
[370114977,1751891440427,-500.0,0.00019173,2]
[370114978,1751891440437,-500.0,0.00019173,2]
[370114980,1751891440446,-439.31530837,0.00019173,2]
[370114981,1751891440455,-500.46494259,0.00019173,2]
[370114982,1751891440465,-207.94613675,0.00019177,2]
[370114983,1751891440474,-180.59514429,0.00019177,2]
[370114984,1751891440485,-6.57649,0.00019178,2]
[370114985,1751891440495,-460.0,0.00019178,2]
[370114987,1751891440505,-460.0,0.00019178,2]
[370114989,1751891440515,-460.0,0.00019178,2]
[370114991,1751891440524,-460.0,0.00019178,2]
[370114992,1751891440533,-460.0,0.00019178,2]
[370114993,1751891440543,-460.0,0.00019178,2]
[370114994,1751891440552,-460.0,0.00019178,2]
[370114996,1751891440561,-460.0,0.00019178,2]
[370114998,1751891440571,-460.0,0.00019178,2]
[370115000,1751891440581,-460.0,0.00019178,2]
[370115002,1751891440590,-158.40916619,0.00019178,2]
[370115004,1751891440600,-460.0,0.00019178,2]
[370115006,1751891440610,-460.0,0.00019178,2]
[370115008,1751891440619,-460.0,0.00019178,2]
[370115010,1751891440629,-460.0,0.00019178,2]
[370115012,1751891440638,-251.40315224,0.00019178,2]
[370115013,1751891440648,-460.0,0.00019178,2]
[370115015,1751891440658,-460.0,0.00019178,2]
[370115017,1751891440667,-460.0,0.00019178,2]
[370115019,1751891440677,-460.0,0.00019178,2]
[370115021,1751891440687,-460.0,0.00019178,2]
[370115023,1751891440696,-460.0,0.00019178,2]
[370115025,1751891440706,-460.0,0.00019178,2]
[370115027,1751891440716,-460.0,0.00019178,2]
[370115029,1751891440725,-460.0,0.00019178,2]
[370115031,1751891440734,-502.29,0.00019178,2]
[370115033,1751891440743,-460.0,0.00019178,2]
[370115034,1751891440752,-460.0,0.00019178,2]
[370115036,1751891440762,-460.0,0.00019178,2]
[370115038,1751891440771,-460.0,0.00019178,2]
[370115040,1751891440781,-460.0,0.00019178,2]
[370115042,1751891440790,-460.0,0.00019178,2]
[370115044,1751891440800,-185.39691238,0.00019178,2]
[370115046,1751891440814,-460.0,0.00019178,2]
[370115049,1751891440824,-460.0,0.00019178,2]
[370115051,1751891440834,-460.0,0.00019178,2]
[370115052,1751891440843,-460.0,0.00019178,2]
[370115054,1751891440854,-461.70098413,0.00019178,2]
[370115056,1751891440864,-1166.62,0.00019178,2]
[370115058,1751891440873,-460.0,0.00019178,2]
[370115060,1751891440884,-460.0,0.00019178,2]
[370115061,1751891440893,-460.0,0.00019178,2]
[370115062,1751891440902,-460.0,0.00019178,2]
[370115063,1751891440911,-460.0,0.00019178,2]
[370115064,1751891440920,-460.0,0.00019178,2]
[370115065,1751891440929,-460.0,0.00019178,2]
[370115066,1751891440939,-460.0,0.00019178,2]
[370115067,1751891440948,-460.0,0.00019178,2]
[370115068,1751891440957,-460.0,0.00019178,2]
[370115069,1751891440967,-460.0,0.00019178,2]
[370115070,1751891440976,-460.0,0.00019178,2]
[370115071,1751891440986,-460.72385342,0.00019178,2]
[370115072,1751891440995,-460.0,0.00019178,2]
[370115073,1751891441004,-460.0,0.00019178,2]
[370115074,1751891441014,-460.0,0.00019178,2]
[370115075,1751891441023,-460.0,0.00019178,2]
[370115076,1751891441032,-460.0,0.00019178,2]
[370115077,1751891441041,-460.0,0.00019178,2]
[370115078,1751891441051,-460.0,0.00019178,2]
[370115079,1751891441060,-460.0,0.00019178,2]
[370115081,1751891441070,-460.0,0.00019178,2]
[370115083,1751891441079,-460.0,0.00019178,2]
[370115084,1751891441088,-414.954876,0.00019178,2]
[370115086,1751891441098,-460.0,0.00019178,2]
[370115088,1751891441107,-460.0,0.00019178,2]
[370115090,1751891441117,-460.0,0.00019178,2]
[370115091,1751891441126,-460.0,0.00019178,2]
[370115092,1751891441135,-460.0,0.00019178,2]
[370115093,1751891441144,-460.0,0.00019178,2]
[370115094,1751891441153,-460.0,0.00019178,2]
[370115095,1751891441163,-193.20020826,0.00019178,2]
[370115096,1751891441172,-460.0,0.00019178,2]
[370115097,1751891441181,-460.0,0.00019178,2]
[370115098,1751891441191,-460.0,0.00019178,2]
[370115099,1751891441201,-460.0,0.00019178,2]
[370115100,1751891441210,-460.0,0.00019178,2]
[370115101,1751891441220,-460.0,0.00019178,2]
[370115102,1751891441230,-460.0,0.00019178,2]
[370115103,1751891441239,-460.0,0.00019178,2]
[370115104,1751891441248,-460.0,0.00019178,2]
[370115105,1751891441258,-460.0,0.00019178,2]
[370115106,1751891441267,-460.0,0.00019178,2]
[370115108,1751891441276,-460.0,0.00019178,2]
[370115109,1751891441286,-478.45,0.00019178,2]
[370115110,1751891441296,-500.39097845,0.00019178,2]
[370115111,1751891441305,-460.0,0.00019178,2]
[370115112,1751891441314,-460.0,0.00019178,2]
[370115113,1751891441324,-460.0,0.00019178,2]
[370115114,1751891441333,-460.0,0.00019178,2]
[370115115,1751891441343,-460.0,0.00019178,2]
[370115116,1751891441353,-460.0,0.00019178,2]
[370115117,1751891441362,-460.0,0.00019178,2]
[370115118,1751891441372,-460.0,0.00019178,2]
[370115119,1751891441382,-460.0,0.00019178,2]
[370115120,1751891441391,-460.0,0.00019178,2]
[370115121,1751891441400,-460.0,0.00019178,2]
[370115122,1751891441410,-460.0,0.00019178,2]
[370115123,1751891441418,-460.0,0.00019178,2]
[370115124,1751891441428,-460.0,0.00019178,2]
[370115125,1751891441437,-460.0,0.00019178,2]
[370115126,1751891441447,-460.0,0.00019178,2]
[370115127,1751891441456,-460.0,0.00019178,2]
[370115128,1751891441465,-460.0,0.00019178,2]
[370115129,1751891441475,-460.0,0.00019178,2]
[370115130,1751891441484,-460.0,0.00019178,2]
[370115131,1751891441494,-460.0,0.00019178,2]
[370115132,1751891441503,-460.0,0.00019178,2]
[370115133,1751891441513,-460.0,0.00019178,2]
[370115134,1751891441523,-460.0,0.00019178,2]
[370115135,1751891441533,-460.0,0.00019178,2]
[370115136,1751891441542,-540.72,0.00019178,2]
[370115137,1751891441552,-460.0,0.00019178,2]
[370115138,1751891441561,-460.0,0.00019178,2]
[370115139,1751891441570,-460.0,0.00019178,2]
[370115140,1751891441580,-242.63094788,0.00019178,2]
[370115141,1751891441590,-460.0,0.00019178,2]
[370115142,1751891441599,-460.0,0.00019178,2]
[370115143,1751891441609,-460.0,0.00019178,2]
[370115144,1751891441618,-460.0,0.00019178,2]
[370115145,1751891441628,-460.0,0.00019178,2]
[370115146,1751891441637,-460.0,0.00019178,2]
[370115147,1751891441647,-460.0,0.00019178,2]
[370115148,1751891441656,-460.0,0.00019178,2]
[370115149,1751891441666,-460.0,0.00019178,2]
[370115150,1751891441675,-229.90987907,0.00019178,2]
[370115151,1751891441685,-460.0,0.00019178,2]
[370115152,1751891441694,-460.0,0.00019178,2]
[370115153,1751891441703,-460.0,0.00019178,2]
[370115154,1751891441713,-460.0,0.00019178,2]
[370115155,1751891441722,-438.79592892,0.00019178,2]
[370115156,1751891441731,-460.0,0.00019178,2]
[370115157,1751891441741,-460.0,0.00019178,2]
[370115158,1751891441750,-460.0,0.00019178,2]
[370115159,1751891441760,-460.0,0.00019178,2]
[370115160,1751891441770,-460.0,0.00019178,2]
[370115161,1751891441779,-460.0,0.00019178,2]
[370115162,1751891441790,-460.0,0.00019178,2]
[370115163,1751891441799,-460.0,0.00019178,2]
[370115164,1751891441809,-460.0,0.00019178,2]
[370115165,1751891441818,-460.0,0.00019178,2]
[370115166,1751891441832,-460.0,0.00019178,2]
[370115167,1751891441841,-578.08066681,0.00019178,2]
[370115168,1751891441850,-460.0,0.00019178,2]
[370115169,1751891441859,-460.0,0.00019178,2]
[370115170,1751891441869,-460.0,0.00019178,2]
[370115171,1751891441878,-460.0,0.00019178,2]
[370115172,1751891441887,-460.0,0.00019178,2]
[370115173,1751891441896,-460.0,0.00019178,2]
[370115174,1751891441906,-460.0,0.00019178,2]
[370115175,1751891441916,-460.0,0.00019178,2]
[370115176,1751891441925,-460.0,0.00019178,2]
[370115177,1751891441934,-460.0,0.00019178,2]
[370115178,1751891441944,-460.0,0.00019178,2]
[370115179,1751891441953,-460.0,0.00019178,2]
[370115180,1751891441963,-460.0,0.00019178,2]
[370115181,1751891441972,-460.0,0.00019178,2]
[370115182,1751891441982,-460.0,0.00019178,2]
[370115183,1751891441991,-460.0,0.00019178,2]
[370115184,1751891442001,-460.0,0.00019178,2]
[370115185,1751891442010,-460.0,0.00019178,2]